[Event "Slovakian-ch Youth 2022"]
[Site "Lubovna"]
[Date "2022.05.23"]
[Round "3.16"]
[White "Lovcican, Tomas"]
[Black "Skreko, Igor"]
[Result "1/2-1/2"]
[ECO "B90"]
[WhiteElo "2024"]
[BlackElo "2065"]
[Annotator "TA"]
[PlyCount "85"]
[EventDate "2022.05.22"]
[EventCountry "SVK"]
[SourceTitle "playchess.com"]
[Source "ChessBase"]
[SourceQuality "1"]
[TimeControl "40/5400+30:1800+30"]

{[%evp 13,85,14,30,35,50,41,57,41,36,23,41,36,38,42,75,24,49,62,86,63,74,78,75,23,57,52,102,30,41,26,66,30,39,26,134,130,191,211,233,238,222,133,137,137,129,118,134,129,124,62,52,67,66,69,79,52,33,0,0,0,0,0,0,-17,-8,-28,8,-71,-71,-112,-93,-91,-35,-54]} 1. e4 {[%emt 0:00:04]} c5 {[%emt 0:00:06]} 2. Nf3 {[%emt 0:00:35]} d6 {[%emt 0:00:05]} 3. d4 {[%emt 0:00:05]} cxd4 {[%emt 0:00:04]} 4. Nxd4 {[%emt 0:00:05]} Nf6 {[%emt 0:00:06]} 5. Nc3 {[%emt 0:00:06]} a6 {[%emt 0:00:04]} 6. h3 {[%emt 0:00:32]} e5 {[%emt 0:02:29] 6...e5 scores better than 6...e6.} 7. Nde2 {[%emt 0:00:15]} Be7 {[%emt 0:00:48]} 8. g4 {[%emt 0:02:22] B90: Sicilian Najdorf: Unusual White 6th moves, 6 Be3 Ng4 and 6 Be3 e5.} Be6 {[%emt 0:01:08]} 9. Bg2 {[%emt 0:03:46]} h6 {[%emt 0:01:33]} 10. Be3 {[%emt 0:04:38] White is slightly better.} Nbd7 {[%emt 0:01:27][%cal Bb8d7,Bd7b6,Bb6c4][%mdl 32]} 11. Ng3 {[%emt 0:05:01]} Nb6 {[%emt 0:08:37]} 12. O-O {[%emt 0:11:18]} Nc4 {[%emt 0:02:24]} 13. Bc1 {[%emt 0:02:13] [#]} Rc8 $146 {[%emt 0:03:26]} ({Predecessor:} 13... g6 14. b3 Nb6 15. Be3 Rc8 16. Qd2 Qc7 17. Nce2 Nbd7 18. c4 h5 19. g5 Nh7 {½-½ (48) Czyz,A (2064)-Olejarczyk,B (2159) Warsaw 2009}) 14. Nf5 {[%emt 0:13:06]} (14. Nd5 $16) 14... Bxf5 {[%emt 0:01:24]} 15. exf5 {[%emt 0:00:03]} Qc7 {[%emt 0:02:21]} 16. Nd5 {[%emt 0:03:12]} Nxd5 {[%emt 0:00:47]} 17. Qxd5 {[%emt 0:00:07]} Na5 {[%emt 0:11:23]} 18. Be3 {[%emt 0:05:12]} ({Better is} 18. c3 $16) 18... O-O {[%emt 0:01:55]} 19. c3 {[%emt 0:05:45]} b5 {[%emt 0:05:42]} (19... Rfd8 $14) 20. Rad1 {[%emt 0:14:47]} (20. b3 $16) 20... Nc4 $11 {[%emt 0:03:12]} 21. Bc1 {[%emt 0:00:09][%cal Of5f6]} Rb8 {[%emt 0:01:07]} 22. Kh1 {[%emt 0:02:58]} Rfc8 {[%emt 0:05:40]} 23. Rfe1 {[%emt 0:03:14]} b4 {[%emt 0:07:46]} (23... Nb6 $11 {remains equal.} 24. Qd3 Na4) 24. cxb4 $16 {[%emt 0:03:22]} Rxb4 {[%emt 0:00:48]} (24... Nb6 $16 25. Qd3 Bh4) 25. b3 $18 {[%emt 0:00:22]} Nb6 {[%emt 0:02:19] [#]} 26. Qa5 {[%emt 0:00:56][%csl LRa6,LRb4]} d5 {[%emt 0:02:51]} 27. Qxa6 {[%emt 0:05:50]} (27. Ba3 $18 Rb5 28. Qxa6 Bxa3 29. Qxb5) 27... Ra8 {[%emt 0:09:14]} 28. Qe2 {[%emt 0:01:35]} e4 {[%emt 0:01:21]} 29. Be3 {[%emt 0:04:05]} Qb7 {[%emt 0:07:37]} 30. f3 {[%emt 0:02:27] [#] fxe4 is the strong threat.} Bh4 {[%emt 0:02:45]} 31. Bf2 {[%emt 0:01:28]} ({White should try} 31. Rf1 $16) 31... Bxf2 $14 {[%emt 0:00:56]} 32. Qxf2 {[%emt 0:00:03] Black must now prevent fxe4.} Nd7 {[%emt 0:02:32]} 33. fxe4 {[%emt 0:01:41]} dxe4 {[%emt 0:00:09]} 34. Re2 {[%emt 0:03:33] aiming for Red2. White is more active.} Nf6 {[%emt 0:01:52]} 35. Qc5 {[%emt 0:01:16]} Rb5 {[%emt 0:01:18]} 36. Qc4 {[%emt 0:01:08]} Rb4 {[%emt 0:00:42]} 37. Qc5 {[%emt 0:00:21]} Rb5 {[%emt 0:00:11]} 38. Qc2 {[%emt 0:00:23]} Rc8 {[%emt 0:01:39][%mdl 1024] Black has compensation.} 39. Qb1 {[%emt 0:00:23][%cal Rg2e4]} Rb4 {[%emt 0:01:44]} 40. Rde1 {[%emt 0:00:58]} (40. Rc2 $11) 40... Rd4 $17 {[%emt 0:03:57]} 41. Rd1 {[%emt 0:30:59]} ({Wrong is} 41. Bxe4 $2 Nxe4 42. Rxe4 Re8 $19) 41... Rcd8 {[%emt 0:31:12]} 42. Ree1 {[%emt 0:00:00]} Qb4 {[%emt 0:00:00]} (42... Qb6 $17 {Hoping for ...Rd2.} 43. Rxd4 Rxd4) 43. Rxd4 {[%emt 0:00:00] White really could win this.  Weighted Error Value: White=0.20 (precise) /Black=0.20 (precise)} 1/2-1/2

[Event "Slovakian-ch Youth 2022"]
[Site "Lubovna"]
[Date "2022.05.23"]
[Round "3.16"]
[White "Toth, Marton"]
[Black "Rybovic, Alex"]
[Result "1-0"]
[ECO "C54"]
[WhiteElo "1849"]
[BlackElo "1000"]
[Annotator "NA RC COMBH"]
[PlyCount "105"]
[EventDate "2022.05.22"]
[EventCountry "SVK"]
[SourceTitle "playchess.com"]
[Source "ChessBase"]
[SourceQuality "1"]
[TimeControl "40/5400+30:1800+30"]

1. e4 {[%emt 0:00:02]} e5 {[%emt 0:00:08]} 2. Nf3 {[%emt 0:00:06]} Nc6 {[%emt 0:00:18]} 3. Bc4 {[%emt 0:00:13]} Bc5 {[%emt 0:00:38]} 4. c3 {[%emt 0:00:09]} Nf6 {[%emt 0:01:02]} 5. d3 {[%emt 0:01:21]} O-O {[%emt 0:00:58]} 6. O-O {[%emt 0:00:23]} d6 {[%emt 0:00:10]} 7. b4 {[%emt 0:01:24]} Bb6 {[%emt 0:01:18]} 8. a4 {[%emt 0:01:02] The old main line.} a5 {[%emt 0:00:56]} 9. b5 {[%emt 0:01:22]} Ne7 {[%emt 0:02:21]} 10. Qb3 {[%emt 0:02:54] [#]} Be6 $146 {[%emt 0:01:11]} ({Predecessor:} 10... Ng6 11. Be3 Bxe3 12. fxe3 c6 13. bxc6 bxc6 14. Nbd2 d5 15. exd5 cxd5 16. Bb5 Be6 {½-½ (44) Gonzalez,B (2377)-Silva,M (2317) ICCF email 2016}) 11. Bxe6 {[%emt 0:03:20]} fxe6 {[%emt 0:00:22]} 12. Ng5 {[%emt 0:00:21]} Qd7 {[%emt 0:04:04]} 13. Nxe6 {[%emt 0:00:21]} Rf7 {[%emt 0:01:35]} 14. Bg5 $2 {[%emt 0:00:57]} ({Only move:} 14. Ng5 $18 Ng6 15. Be3) 14... d5 {[%emt 0:02:07]} 15. Bxf6 {[%emt 0:01:29]} Qxe6 {[%emt 0:01:12]} (15... Rxf6 $15 16. exd5 Nxd5) 16. Bxe7 {[%emt 0:00:56]} Qxe7 {[%emt 0:00:46]} 17. Nd2 {[%emt 0:04:21]} Qf8 {[%emt 0:00:53]} (17... d4 $16) 18. Qxd5 {[%emt 0:09:20]} Rd8 {[%emt 0:01:17]} 19. Qc4 {[%emt 0:08:14]} ({Don't do} 19. Qxe5 $6 Rxd3 20. Nc4 (20. Nf3 Re7 $16) 20... Re7 $16) ({Don't play} 19. Qxb7 $6 Rxf2 20. d4 Rxf1+ 21. Rxf1 Qd6 $14) ({Better is} 19. Qe6 $18) 19... Rd6 {[%emt 0:00:53]} (19... Kh8 $16 20. Kh1 h6) 20. Ra2 {[%emt 0:08:52]} Kh8 {[%emt 0:00:27]} 21. Nb3 {[%emt 0:02:56]} Rxf2 $2 {[%emt 0:00:22]} 22. Raxf2 {[%emt 0:01:46]} Bxf2+ {[%emt 0:00:25]} 23. Rxf2 {[%emt 0:00:01]} Rf6 {[%emt 0:00:41]} 24. Rxf6 {[%emt 0:01:00]} Qxf6 {[%emt 0:00:28]} 25. Qxc7 {[%emt 0:00:34]} h5 {[%emt 0:00:22]} 26. d4 {[%emt 0:01:01]} exd4 {[%emt 0:00:30]} 27. Nxd4 {[%emt 0:00:18]} h4 {[%emt 0:00:26]} 28. Qc8+ {[%emt 0:00:10]} Kh7 {[%emt 0:00:19]} 29. Qf5+ {[%emt 0:00:10]} Qxf5 {[%emt 0:00:45]} 30. exf5 {[%emt 0:00:24]} Kh6 {[%emt 0:00:27]} 31. Ne6 {[%emt 0:00:28]} g6 {[%emt 0:00:26]} 32. fxg6 {[%emt 0:00:26]} Kxg6 {[%emt 0:00:17]} 33. Kf2 {[%emt 0:00:12]} Kf5 {[%emt 0:00:10]} 34. Nd4+ {[%emt 0:01:03]} Kg4 {[%emt 0:00:21]} 35. g3 {[%emt 0:00:36]} Kh3 {[%emt 0:00:38]} 36. gxh4 {[%emt 0:01:12]} Kxh4 {[%emt 0:00:19]} 37. Ne6 {[%emt 0:00:15]} Kh3 {[%emt 0:00:22]} 38. Kf3 {[%emt 0:01:22]} Kxh2 {[%emt 0:00:12]} 39. b6 {[%emt 0:00:24]} Kh3 {[%emt 0:00:09]} 40. Nc5 {[%emt 0:00:23]} Kh4 {[%emt 0:00:14]} 41. Kf4 {[%emt 0:31:04]} Kh5 {[%emt 0:30:46]} 42. Nxb7 {[%emt 0:00:36]} Kg6 {[%emt 0:00:09]} 43. Nd6 {[%emt 0:01:13]} Kf6 {[%emt 0:00:12]} 44. b7 {[%emt 0:01:01]} Ke7 {[%emt 0:00:10]} 45. b8=Q {[%emt 0:00:16]} Kd7 {[%emt 0:00:35]} 46. Qb5+ {[%emt 0:00:23]} Kxd6 {[%emt 0:00:25]} 47. Ke4 {[%emt 0:00:26]} Ke6 {[%emt 0:00:17]} 48. Qa6+ {[%emt 0:00:13]} Kd7 {[%emt 0:00:15]} 49. Ke5 {[%emt 0:00:10]} Kc7 {[%emt 0:00:18]} 50. Kd5 {[%emt 0:01:12]} Kd7 {[%emt 0:00:12]} 51. Qa7+ {[%emt 0:00:03]} Ke8 {[%emt 0:00:16]} 52. Ke6 {[%emt 0:00:21]} Kf8 {[%emt 0:00:19]} 53. Qf7# {[%emt 0:00:11]} 1-0

[Event "Slovakian-ch Youth 2022"]
[Site "Lubovna"]
[Date "2022.05.23"]
[Round "3.17"]
[White "Salgovic, Simon"]
[Black "Rakovsky, Jakub"]
[Result "0-1"]
[ECO "A01"]
[WhiteElo "2091"]
[BlackElo "1888"]
[Annotator "TA"]
[PlyCount "78"]
[EventDate "2022.05.22"]
[EventCountry "SVK"]
[SourceTitle "playchess.com"]
[Source "ChessBase"]
[SourceQuality "1"]
[TimeControl "40/5400+30:1800+30"]

{[%evp 9,78,13,33,-5,0,0,0,0,40,39,36,39,48,19,30,18,22,0,0,-25,-22,-152,-141,-138,-141,-134,-158,-159,-155,-285,-267,-286,-272,-272,-284,-280,-277,-280,-275,-302,-296,-297,-297,-289,-298,-331,-312,-375,-351,-515,-515,-488,-492,-487,-484,-716,-695,-691,-676,-805,-789,-795,-799,-817,-810,-999,-972,-896,-838,-828,-828]} 1. b3 {[%emt 0:00:48]} e5 {[%emt 0:02:56]} 2. Bb2 {[%emt 0:00:01]} Nc6 {[%emt 0:01:06]} 3. e3 {[%emt 0:01:09]} d6 {[%emt 0:01:34]} 4. Ne2 {[%emt 0:05:51]} Nf6 {[%emt 0:05:01]} 5. d4 {[%emt 0:00:33] [#]} Qe7 $146 {[%emt 0:05:48]} ({Predecessor:} 5... exd4 6. Nxd4 Nxd4 7. Qxd4 d5 8. Nc3 Be7 9. O-O-O Be6 10. e4 c5 11. Qa4+ Bd7 12. Bb5 d4 13. Bxd7+ Nxd7 14. Nd5 {½-½ (28) Cabarkapa,N (2451)-Draskovic,L (2444) Niksic 2018}) 6. g3 {[%emt 0:04:13] A01: Nimzowitsch-Larsen Opening.} Bg4 {[%emt 0:03:30]} 7. Bg2 {[%emt 0:00:11]} exd4 {[%emt 0:01:29]} 8. exd4 {[%emt 0:04:16] The position is equal.} Bxe2 {[%emt 0:02:05]} 9. Qxe2 {[%emt 0:00:08]} Qxe2+ {[%emt 0:01:12]} 10. Kxe2 {[%emt 0:02:23]} O-O-O {[%emt 0:00:39][%cal Ba8d8,Bd8e8,Be8e3][%mdl 32]} 11. a3 {[%emt 0:04:16]} Re8+ {[%emt 0:02:04]} 12. Kd3 {[%emt 0:01:53]} Ng4 {[%emt 0:08:03] Pair of Knights!} 13. Bh3 {[%emt 0:02:18]} f5 {[%emt 0:00:11][%cal Bf7f5,Bf5g4][%mdl 32]} 14. Rf1 {[%emt 0:05:59]} g6 {[%emt 0:05:42]} (14... Nxh2 15. Bxf5+ Kd8 16. Rh1) ({Don't take} 14... Nxh2 15. Bxf5+ Kd8 16. Rh1 $16) 15. f3 {[%emt 0:01:57] Black continues to play with concentration.} (15. Nd2 $11 {keeps the balance.}) 15... Re3+ $17 {[%emt 0:02:39]} (15... Nxh2 16. Rf2) ({But not} 15... Nxh2 16. Rf2 $16) 16. Kd2 {[%emt 0:05:39] [#]} Bh6 $1 $36 {[%emt 0:00:15][%mdl 2048] Black has strong initiative.} 17. f4 {[%emt 0:06:09] Black must now prevent Bxg4.} Rhe8 {[%emt 0:01:16] 0x0.0024a8aedfbedp-1022s more active pieces. The white rooks are badly placed.} 18. Bxg4 {[%emt 0:00:05]} fxg4 {[%emt 0:00:52]} 19. Rf2 {[%emt 0:02:28] Inhibits Re2+.} (19. d5 Re2+ 20. Kd1) (19. d5 $17 {is the only way for White.} Re2+ 20. Kd1) 19... Bg7 $19 {[%emt 0:05:16]} 20. c3 {[%emt 0:01:42]} Na5 {[%emt 0:02:56]} 21. Kc2 {[%emt 0:01:48] [#]} Re2+ {[%emt 0:00:53]} 22. Rxe2 {[%emt 0:00:02]} Rxe2+ {[%emt 0:00:09]} 23. Nd2 {[%emt 0:00:10]} Rxh2 {[%emt 0:04:56]} 24. Re1 {[%emt 0:08:20]} Kd7 {[%emt 0:00:57][%cal Oa5b3] Against Re7+} 25. Bc1 {[%emt 0:01:25]} Nc6 {[%emt 0:02:43]} 26. Kd3 {[%emt 0:07:03]} Ne7 {[%emt 0:00:43]} 27. Rg1 {[%emt 0:05:57]} Nf5 {[%emt 0:02:19]} 28. Nf1 {[%emt 0:02:00]} Rf2 {[%emt 0:01:56] ...Rf3+ is the strong threat.} 29. Be3 {[%emt 0:01:31]} (29. Nd2 {was worth a try.}) 29... Rf3 {[%emt 0:04:09] Black is clearly winning.} 30. Ke2 {[%emt 0:06:55] [#]} Rxf1 $1 {[%emt 0:00:23][%mdl 512]} 31. Kxf1 {[%emt 0:01:41]} Nxe3+ {[%emt 0:00:33]} 32. Kf2 {[%emt 0:00:30]} (32. Ke2 $142 Nf5 33. Kd3) 32... Nd5 {[%emt 0:01:35]} 33. Rh1 {[%emt 0:00:28]} h5 {[%emt 0:04:00]} 34. f5 {[%emt 0:00:01]} gxf5 {[%emt 0:00:55]} 35. Rxh5 {[%emt 0:00:22]} Ke6 {[%emt 0:04:32]} 36. Rh7 {[%emt 0:00:29]} Kf7 {[%emt 0:01:45]} 37. c4 {[%emt 0:00:47]} Nf6 {[%emt 0:02:20]} 38. Rh4 {[%emt 0:02:50]} Ne4+ {[%emt 0:00:15]} 39. Ke3 {[%emt 0:00:14]} Kg6 {[%emt 0:02:09] Weighted Error Value: White=0.48/Black=0.02 (flawless)} 0-1

[Event "Slovakian-ch Youth 2022"]
[Site "Lubovna"]
[Date "2022.05.23"]
[Round "3.18"]
[White "Paluska, Karol"]
[Black "Janik, Marek Tobias"]
[Result "1-0"]
[ECO "A01"]
[WhiteElo "2006"]
[BlackElo "1840"]
[Annotator "TA"]
[PlyCount "87"]
[EventDate "2022.05.22"]
[EventCountry "SVK"]
[SourceTitle "playchess.com"]
[Source "ChessBase"]
[SourceQuality "1"]
[TimeControl "40/5400+30:1800+30"]

{[%evp 9,87,-16,-16,-22,-17,-31,-17,-16,0,-5,0,-12,-8,-10,0,0,0,-44,-41,-58,0,0,0,-14,0,0,0,-42,-44,-40,0,0,0,0,0,0,-15,-8,-6,-6,-10,0,22,23,33,0,0,0,0,0,0,0,77,85,96,90,106,89,93,49,400,-4,180,-179,-152,-411,0,0,0,0,0,0,82,91,335,288,1091,1072,12839,12839]} 1. b3 {[%emt 0:00:04]} e5 {[%emt 0:00:48]} 2. Bb2 {[%emt 0:00:05]} d6 {[%emt 0:00:03]} 3. e3 {[%emt 0:00:14]} Nf6 {[%emt 0:00:21]} 4. d4 {[%emt 0:01:34]} exd4 {[%emt 0:10:43]} 5. Bxd4 {[%emt 0:01:02]} g6 {[%emt 0:00:39]} 6. Nf3 {[%emt 0:02:37] A01: Nimzowitsch-Larsen Opening.} Bg7 {[%emt 0:00:31]} 7. Bd3 {[%emt 0:06:12]} Nc6 {[%emt 0:03:28]} 8. Bb2 {[%emt 0:02:45] [#] The position is equal.} Be6 $146 {[%emt 0:02:16]} ({Predecessor:} 8... O-O 9. O-O Qe7 10. Nbd2 b6 11. Qe2 Nb4 12. Rfe1 Bb7 13. a3 Nxd3 14. cxd3 Rfe8 {1-0 (85) Moreno Gracia,D (2341)-Lana Rodriguez,D (2254) Aragon 2015}) 9. a3 {[%emt 0:00:59]} O-O {[%emt 0:07:57]} 10. c4 {[%emt 0:04:22]} Qe7 {[%emt 0:04:05][%cal Oc6e5]} 11. O-O {[%emt 0:00:36]} Rad8 {[%emt 0:00:29]} 12. Qc2 {[%emt 0:00:24]} Bg4 {[%emt 0:13:20]} 13. Nd4 {[%emt 0:02:06]} Ne5 {[%emt 0:02:46]} 14. Nc3 {[%emt 0:03:48]} c5 {[%emt 0:07:53]} (14... d5 $15 15. cxd5 Nxd3 16. Qxd3 Nxd5 17. Nxd5 Rxd5) 15. Nde2 $11 {[%emt 0:03:20]} d5 {[%emt 0:16:47]} 16. cxd5 {[%emt 0:08:00]} Nxd5 {[%emt 0:00:21]} 17. Nxd5 {[%emt 0:06:40]} Rxd5 {[%emt 0:00:10]} 18. Bc4 {[%emt 0:10:27]} Nxc4 {[%emt 0:02:21]} 19. bxc4 {[%emt 0:00:29]} Rd6 {[%emt 0:08:04]} (19... Bf5 $5 {[%cal Rf5c2]} 20. Qc1 Bxb2 21. Qxb2 Rd7 $15) 20. Bxg7 {[%emt 0:01:30]} Kxg7 {[%emt 0:00:28]} 21. Nf4 {[%emt 0:00:20]} Qe5 {[%emt 0:03:54]} 22. Nd5 {[%emt 0:01:56]} Bf5 {[%emt 0:01:24]} 23. Qb3 {[%emt 0:07:17]} b6 {[%emt 0:04:04]} 24. f3 {[%emt 0:02:08][%cal Bf2f3,Bf3f4][%mdl 32] Inhibits Be4.} Be6 {[%emt 0:05:42][%cal Re6d5]} 25. e4 {[%emt 0:03:12]} (25. f4 Qe4 26. Rad1 Bc8 $15) 25... f5 {[%emt 0:01:27]} 26. Rae1 {[%emt 0:01:40][%cal Ba1e1,Be1d1,Bd1d6][%mdl 32]} Qd4+ {[%emt 0:01:46]} 27. Kh1 {[%emt 0:00:08]} (27. Rf2 $5 {[%cal Re1d1]}) 27... fxe4 $1 {[%emt 0:00:18][%cal Re6d5]} 28. Rd1 {[%emt 0:05:04]} Qe5 {[%emt 0:01:07] And now ...exf3 would win.} 29. f4 {[%emt 0:01:52]} Qh5 {[%emt 0:00:57]} 30. Nc7 {[%emt 0:07:55]} Bxc4 {[%emt 0:00:48]} 31. Qc3+ $16 {[%emt 0:12:10]} Kh6 {[%emt 0:00:22]} 32. Rxd6 {[%emt 0:00:10]} Bxf1 {[%emt 0:00:07]} 33. Ne6 $1 {[%emt 0:02:33][%csl Ge6][%cal Rc3g7] Really sharp! White is more active.} Rf7 {[%emt 0:00:58] Inhibits Qg7+. Threatens to win with ...Qg4.} 34. Qe3 $40 {[%emt 0:02:10][%mdl 1152] Threatening mate with f5+. White has strong compensation. White is up to no good.} Qf5 $2 {[%emt 0:00:27][%mdl 8192]} (34... Rf5 $14) 35. Ng5 $2 {[%emt 0:01:38] [#]} (35. h3 $1 $18 {Strongly threatening g4.} Bxg2+ 36. Kxg2) 35... Re7 $2 {[%emt 0:00:29]} (35... Bxg2+ $1 $11 36. Kxg2 Qg4+ 37. Kh1 Rxf4 38. Nxe4 Qf3+ 39. Qxf3 Rxf3) 36. Rd8 $4 {[%emt 0:00:30][%mdl 8192]} (36. Qf2 Be2 $1 37. h3 (37. Qxe2 $2 Qxf4 38. Rd5 Qc1+ 39. Rd1 Qxg5 $19) 37... Bh5) (36. h3 $1 $18 {and all is fine. aiming for g4.} Be2 37. g4 (37. Qxe2 e3 $16) 37... Bxg4 38. hxg4 Qxg4 39. Rd2) 36... Qg4 {[%emt 0:00:22][%csl Gf1][%cal Rg4g2]} 37. Qf2 {[%emt 0:00:32]} (37. Rd2 $17 Bd3 38. h3) 37... e3 $2 {[%emt 0:00:44]} 38. Qxf1 $11 {[%emt 0:00:04]} e2 {[%emt 0:00:02][%cal Re2f1][%mdl 64] Deflection} 39. Qe1 {[%emt 0:00:05] Black must now prevent g3.} Qxf4 {[%emt 0:00:07] ( -> ...Qf1+)} 40. Nf3 {[%emt 0:00:22]} Re3 {[%emt 0:01:03] [#]} (40... Kg7 $11) 41. Rd2 $1 $16 {[%emt 0:31:27]} ({Don't blunder} 41. Rd7 $2 Rxf3 42. gxf3 Qxf3+ 43. Kg1 Qg4+ 44. Kf2 Qxd7 $19) 41... Rxa3 $2 {[%emt 0:12:27]} (41... Re4 $16) 42. Rxe2 $18 {[%emt 0:00:00]} c4 $2 {[%emt 0:02:32]} (42... Rxf3 43. gxf3 Qxf3+ 44. Rg2 a6) 43. Re4 {[%emt 0:00:00]} Qf6 {[%emt 0:05:09]} 44. Qc1+ {[%emt 0:00:00] Weighted Error Value: White=0.39/Black=0.57} 1-0

[Event "Slovakian-ch Youth 2022"]
[Site "Lubovna"]
[Date "2022.05.23"]
[Round "3.19"]
[White "Rak, Martin"]
[Black "Horvath, Marek"]
[Result "1-0"]
[ECO "C56"]
[WhiteElo "1849"]
[BlackElo "1801"]
[Annotator "NA RC COMBH"]
[PlyCount "49"]
[EventDate "2022.05.22"]
[EventCountry "SVK"]
[SourceTitle "playchess.com"]
[Source "ChessBase"]
[SourceQuality "1"]
[TimeControl "40/5400+30:1800+30"]

{[%evp 19,46,2,32767,32767,32767,32767,32767,32767,102,6,20,16,28,9,20,0,29,20,32767,32767,125,126,128,127,124,122,135,97,97]} 1. e4 {[%emt 0:00:02]} e5 {[%emt 0:00:10]} 2. Nf3 {[%emt 0:00:09]} Nc6 {[%emt 0:00:06]} 3. d4 {[%emt 0:00:08]} exd4 {[%emt 0:00:27]} 4. Bc4 {[%emt 0:00:08]} Nf6 {[%emt 0:00:08]} 5. e5 {[%emt 0:00:22]} d5 {[%emt 0:00:06]} 6. Bb5 {[%emt 0:00:11]} Ne4 {[%emt 0:00:06]} 7. Nxd4 {[%emt 0:00:16]} Bd7 {[%emt 0:00:12]} 8. Bxc6 {[%emt 0:00:20]} bxc6 {[%emt 0:00:05]} 9. O-O {[%emt 0:00:30]} Bc5 {[%emt 0:00:05]} 10. Be3 {[%emt 0:00:19]} O-O {[%emt 0:05:48]} 11. Nd2 {[%emt 0:02:08]} Nxd2 {[%emt 0:05:06]} 12. Qxd2 {[%emt 0:00:21]} Qb8 {[%emt 0:01:23]} 13. c3 {[%emt 0:06:51]} a5 {[%emt 0:04:28] [#]} (13... Bb6 $11) 14. Nb3 {[%emt 0:05:04]} (14. Nxc6 $1 $16 Bxe3 15. Nxb8 Bxd2 16. Nxd7) 14... Bb6 {[%emt 0:06:14]} 15. Nc5 {[%emt 0:04:52]} Bf5 {[%emt 0:07:13]} 16. b4 {[%emt 0:02:38]} Re8 {[%emt 0:03:38]} 17. f4 {[%emt 0:01:00]} Qa7 {[%emt 0:02:16]} 18. a3 {[%emt 0:09:16]} axb4 {[%emt 0:04:39]} 19. cxb4 {[%emt 0:00:33]} Be4 {[%emt 0:01:57]} ({Black should try} 19... Bxc5 20. Bxc5 Qa4) 20. a4 {[%emt 0:01:52]} Rad8 {[%emt 0:05:28]} 21. Bd4 {[%emt 0:12:43]} Bxc5 $16 {[%emt 0:07:45]} 22. Bxc5 {[%emt 0:00:07]} Qa6 {[%emt 0:00:55]} 23. Rfd1 {[%emt 0:08:57]} Re6 {[%emt 0:02:24]} 24. Qe3 {[%emt 0:03:56]} Rg6 {[%emt 0:08:23]} 25. Qxe4 {[%emt 0:01:06]} 1-0

[Event "Slovakian-ch Youth 2022"]
[Site "Lubovna"]
[Date "2022.05.23"]
[Round "3.20"]
[White "Sevcik, Matej"]
[Black "Sustek, Adam"]
[Result "1/2-1/2"]
[ECO "E05"]
[WhiteElo "1820"]
[BlackElo "1636"]
[Annotator "NA RC COMBH"]
[PlyCount "62"]
[EventDate "2022.05.22"]
[EventCountry "SVK"]
[SourceTitle "playchess.com"]
[Source "ChessBase"]
[SourceQuality "1"]
[TimeControl "40/5400+30:1800+30"]

1. d4 {[%emt 0:00:07]} e6 {[%emt 0:00:09]} 2. c4 {[%emt 0:00:12]} d5 {[%emt 0:00:13]} 3. Nf3 {[%emt 0:00:04]} Nf6 {[%emt 0:00:19]} 4. g3 {[%emt 0:00:12]} Be7 {[%emt 0:00:20]} 5. Bg2 {[%emt 0:00:05]} O-O {[%emt 0:00:16]} 6. O-O {[%emt 0:00:05]} dxc4 {[%emt 0:00:18]} 7. Qc2 {[%emt 0:00:07]} a6 {[%emt 0:00:13]} 8. a4 {[%emt 0:00:04] 8.a4 scores better than 8.Qxc4.} Bd7 {[%emt 0:00:24]} 9. Qxc4 {[%emt 0:00:08]} b5 {[%emt 0:02:13]} 10. Qc2 {[%emt 0:01:27] [#]} bxa4 $146 {[%emt 0:03:43]} ({Predecessor:} 10... Nc6 11. axb5 Nb4 12. Qb3 Bxb5 13. Nc3 Bc6 14. Bf4 Rb8 15. Qc4 Ne8 16. e4 Qc8 17. Rfc1 {1-0 (30) Gaal,Z (2336)-Vidic,T (2191) Terme Catez 2022}) 11. Ne5 {[%emt 0:03:49]} Nd5 {[%emt 0:07:03]} 12. Nc3 {[%emt 0:02:04]} Nb4 {[%emt 0:02:15]} 13. Qd1 {[%emt 0:02:25]} N8c6 {[%emt 0:04:33]} 14. Nxa4 {[%emt 0:03:19]} (14. Nxd7 $16 Qxd7 15. Qxa4) 14... Rb8 {[%emt 0:03:47]} 15. Nf3 {[%emt 0:13:05]} Na7 {[%emt 0:12:26]} 16. e4 {[%emt 0:06:05]} (16. Bd2 $14) 16... Bb5 {[%emt 0:18:28]} 17. Re1 {[%emt 0:04:40]} Bd3 $11 {[%emt 0:10:08]} 18. Re3 {[%emt 0:03:59]} Bc2 {[%emt 0:02:02]} 19. Qe2 {[%emt 0:01:56]} c5 {[%emt 0:05:05]} ({Black should try} 19... Nb5 $11) 20. d5 {[%emt 0:10:58]} Nb5 {[%emt 0:08:37]} 21. Bd2 {[%emt 0:13:22]} Nd4 {[%emt 0:01:53]} 22. Nxd4 {[%emt 0:00:44]} cxd4 {[%emt 0:00:14]} 23. Rea3 {[%emt 0:03:20]} d3 {[%emt 0:00:54]} 24. Qg4 {[%emt 0:01:22]} exd5 {[%emt 0:03:55]} 25. exd5 {[%emt 0:05:45]} Nxd5 {[%emt 0:01:00]} 26. Bh6 {[%emt 0:02:03]} Bf6 {[%emt 0:00:17]} 27. Be4 {[%emt 0:01:40]} Ne7 {[%emt 0:03:10]} 28. Bf4 {[%emt 0:08:44]} Rb4 {[%emt 0:02:46]} 29. Bd2 {[%emt 0:01:04]} Rxa4 {[%emt 0:02:48]} 30. Rxa4 {[%emt 0:00:21]} Bxa4 {[%emt 0:00:02]} 31. Rxa4 {[%emt 0:00:26]} Bxb2 {[%emt 0:00:50]} 1/2-1/2